bitfinex/quotes_ETHUSD_20250810
["timestamp","ask_amount","ask_price","bid_price","bid_amount"]
[1754795981418,1.7661331,4246.6,4246.0,0.43]
[1754795981592,1.7661331,4246.6,4245.7,0.8832]
[1754795981795,1.76608409,4246.7,4245.9,1.76640488]
[1754795982026,0.35320713,4246.7,4245.7,0.8832]
[1754795982224,0.02943531,4246.6,4245.8,1.76641077]
[1754795982425,0.4532,4246.7,4245.6,0.041]
[1754795982736,0.4532,4246.7,4245.6,1.80751272]
[1754795982737,1.76620184,4246.5,4245.6,1.80751272]
[1754795983036,2.20139077,4246.4,4245.6,0.041]
[1754795983241,0.43514916,4246.4,4245.6,0.041]
[1754795983408,1.76591111,4247.1,4245.6,0.041]
[1754795983409,0.366,4247.0,4245.6,0.041]
[1754795983596,1.71623286,4246.4,4245.6,1.80750598]
[1754795983802,3.0,4246.9,4246.0,1.76636441]
[1754795984012,3.0,4246.9,4245.7,0.8832]
[1754795984210,1.76599843,4246.9,4245.8,2.19645155]
[1754795984432,0.17659984,4246.8,4246.2,1.76627454]
[1754795984746,0.17659984,4246.8,4246.0,0.43]
[1754795984897,1.76606534,4246.8,4246.0,2.19635639]
[1754795985102,1.766076,4246.8,4246.0,1.76635746]
[1754795985313,0.84863184,4247.1,4246.0,0.1176]
[1754795985314,1.88371915,4246.6,4246.0,0.1176]
[1754795985514,0.1176,4246.6,4246.0,0.1176]
[1754795985714,0.1176,4246.6,4246.0,1.88395726]
[1754795985922,0.1176,4246.6,4246.1,1.76629569]
[1754795986128,0.1176,4246.6,4246.2,1.76626702]
[1754795986338,0.1176,4246.6,4246.0,1.88396524]
[1754795986339,0.1176,4246.6,4246.0,1.88393393]
[1754795986845,0.1176,4246.6,4246.0,0.1176]
[1754795987031,0.30595945,4246.6,4246.0,0.1176]
[1754795987205,1.76616766,4246.5,4246.0,0.1176]
[1754795988265,1.76649315,4245.7,4245.6,0.041]
[1754795988409,1.76646608,4245.8,4245.6,0.041]
[1754795988834,1.76640994,4245.9,4245.7,0.21930544]
[1754795989023,1.76645155,4245.8,4245.6,0.041]
[1754795989219,2.13232824,4246.1,4245.7,0.21930524]
[1754795989548,1.76640994,4245.9,4245.8,0.21930524]
[1754795989702,2.21243181,4245.9,4245.8,0.21930524]
[1754795990824,0.44602187,4245.9,4245.8,0.21930524]
[1754795991008,2.21243181,4245.9,4245.8,0.21930524]
[1754795991204,5.62735886,4246.1,4245.8,0.21930524]
[1754795991421,5.62735886,4246.1,4245.9,0.21930524]
[1754795991422,3.861,4246.1,4245.9,0.21930524]
[1754795991636,2.32780377,4246.2,4246.0,0.21930524]
[1754795991806,2.32780377,4246.2,4246.1,0.21930524]
[1754795997956,6.14700377,4246.2,4246.1,0.21930524]
[1754795998144,6.26460377,4246.2,4246.1,0.21930524]
[1754795999171,5.44540377,4246.2,4246.1,0.21930524]
[1754796000272,5.44536564,4246.2,4246.1,0.21930524]
[1754796000478,9.30036564,4246.2,4246.1,0.21930524]
[1754796002294,6.9726,4246.2,4246.1,0.66990524]
[1754796002497,8.73888514,4246.2,4246.1,0.21930524]
[1754796002800,5.62128514,4246.2,4246.1,0.21930524]
[1754796003161,3.855,4246.2,4246.1,1.15330524]
[1754796003361,3.855,4246.2,4246.1,1.15430524]
[1754796003599,5.62128514,4246.2,4246.1,0.67090524]
[1754796003796,5.62128514,4246.2,4246.1,0.22030524]
[1754796004094,3.855,4246.2,4246.1,1.15430524]
[1754796005797,5.62128514,4246.2,4246.1,0.22030524]
[1754796005989,6.37179498,4246.2,4246.1,0.22030524]
[1754796006185,4.60550984,4246.2,4246.1,0.22030524]
[1754796006566,6.37179498,4246.2,4246.1,0.22030524]
[1754796012092,4.60550984,4246.2,4246.1,0.22030524]
[1754796012327,6.37179498,4246.2,4246.1,0.22030524]
[1754796013825,4.60550984,4246.2,4246.1,0.22030524]
[1754796014414,6.37179498,4246.2,4246.1,0.22030524]
[1754796014615,4.60550984,4246.2,4246.1,0.22030524]
[1754796015204,0.1176,4246.3,4246.1,1.15430524]
[1754796015434,3.848,4246.2,4246.1,0.001]
[1754796015634,3.848,4246.2,4246.1,0.22153813]
[1754796016040,3.848,4246.2,4246.1,1.15553813]
[1754796016443,3.848,4246.2,4246.1,2.92186487]
[1754796016743,3.848,4246.2,4246.1,1.15553813]
[1754796017109,0.002,4246.6,4246.4,1.76618472]
[1754796017309,0.002,4246.6,4246.1,1.44773596]
[1754796017310,0.002,4246.6,4246.5,1.16333813]
[1754796017906,0.03143531,4246.6,4246.5,0.22053813]
[1754796018113,0.002,4246.6,4246.5,0.22053813]
[1754796018342,3.847,4246.6,4246.5,1.16333813]
[1754796019663,5.61311877,4246.6,4246.5,1.16333813]
[1754796019813,3.847,4246.6,4246.5,0.67163813]
[1754796020009,5.61311877,4246.6,4246.5,0.22053813]
[1754796020210,6.36279467,4246.6,4246.5,0.22053813]
[1754796020412,9.26790296,4246.6,4244.7,0.001]
[1754796020614,1.76661798,4245.4,4244.7,0.001]
[1754796020816,8.61061798,4245.4,4244.7,0.001]
[1754796021017,10.15416486,4245.4,4244.7,0.001]
[1754796021249,5.80727997,4245.4,4244.7,0.001]
[1754796021456,9.65127997,4245.4,4244.9,0.4511]
[1754796021952,5.60961798,4245.4,4244.9,0.4511]
[1754796022319,5.60961798,4245.4,4244.8,0.001]
[1754796023983,3.843,4245.4,4245.3,0.45110001]
[1754796024150,5.60961798,4245.4,4245.3,0.94280001]
[1754796024487,3.843,4245.4,4245.3,0.94280001]
[1754796024787,3.842,4245.7,4245.3,0.94280001]
[1754796025098,3.842,4246.1,4245.6,1.76649756]
[1754796025293,3.842,4246.3,4245.7,1.76647811]
[1754796025579,5.60824849,4246.3,4245.7,0.9428]
[1754796025886,3.842,4246.3,4245.7,0.9428]
[1754796026093,3.842,4246.3,4245.8,0.9428]
[1754796026391,3.842,4246.3,4245.9,0.9428]
[1754796026548,3.842,4246.3,4246.0,0.9428]
[1754796026749,1.76616344,4246.5,4245.7,0.2709368]
[1754796026944,1.76623527,4246.4,4246.1,0.9428]
[1754796027194,1.76623527,4246.4,4246.1,0.4917]
[1754796027390,1.76616291,4246.5,4246.2,0.4511]
[1754796027551,0.002,4246.6,4246.3,0.9428]
[1754796027870,0.002,4246.6,4245.3,1.76662639]
[1754796027871,0.002,4246.6,4246.4,0.9428]
[1754796028073,0.002,4246.6,4246.5,1.76616036]
[1754796028273,0.002,4246.6,4246.5,2.9798564]
[1754796028581,0.002,4246.6,4246.5,3.5298564]
[1754796028988,0.002,4246.6,4246.5,2.9798564]
[1754796029158,0.002,4246.6,4246.5,2.70896036]
[1754796029361,0.002,4246.6,4246.5,16.32481808]
[1754796029686,1e-08,4247.3,4247.2,2.31586927]
[1754796029894,0.002,4247.7,4247.6,2.31570298]
[1754796030384,0.002,4247.7,4247.6,3.37610298]
[1754796030693,0.002,4247.7,4247.6,0.93178891]
[1754796030873,0.002,4247.7,4247.6,2.82610298]
[1754796031102,0.002,4247.7,4247.6,1.0604]
[1754796031304,0.002,4247.7,4247.6,2.82610298]
[1754796031683,0.002,4247.7,4247.6,1.0604]
[1754796031882,0.002,4247.7,4247.6,2.82610298]
[1754796032087,0.002,4247.7,4247.6,1.90348881]
[1754796032286,0.002,4247.7,4247.6,0.1176]
[1754796032518,1.76570298,4247.6,4246.7,0.4511]
[1754796032718,0.1176,4247.5,4246.7,0.1176]
[1754796032888,1.76575803,4247.5,4246.8,0.4511]
[1754796033088,0.1176,4247.5,4246.9,0.1176]
[1754796033285,1.88338287,4247.5,4246.9,0.1176]
[1754796033693,0.1176,4247.5,4247.0,0.4511]
[1754796034014,0.002,4247.7,4247.3,0.1176]
[1754796034414,0.002,4247.7,4247.6,0.1176]
[1754796034923,0.002,4247.7,4247.6,1.0604]
[1754796035496,0.002,4247.7,4247.6,2.82610298]
[1754796035696,0.002,4247.7,4247.6,3.10871328]
[1754796036093,0.002,4247.7,4247.6,3.65871328]
[1754796036325,1e-08,4247.7,4247.6,3.65871328]
[1754796036526,1e-08,4247.7,4247.6,6.65871328]
[1754796037093,1e-08,4248.1,4248.0,1.76553672]
[1754796037297,1e-08,4248.1,4248.0,9.67725238]
[1754796037535,1e-08,4248.1,4248.0,10.62005238]
[1754796038393,1e-08,4248.1,4248.0,0.52571566]
[1754796038633,1e-08,4248.1,4248.0,3.9516]
[1754796039029,1e-08,4248.1,4248.0,4.4027]
[1754796039233,1e-08,4248.1,4248.0,4.8944]
[1754796039768,1e-08,4248.1,4248.0,3.9516]
[1754796040461,1.76549517,4248.1,4247.4,3.833]
[1754796040631,1.7655409,4248.0,4247.7,0.1176]
[1754796040831,1.76561985,4247.8,4247.4,3.833]
[1754796041060,1e-08,4248.1,4247.5,0.1176]
[1754796041478,1.76570298,4247.6,4247.5,0.1176]
[1754796041686,1.1173703,4247.6,4247.0,0.1176]
[1754796041837,1.76598256,4247.0,4246.6,3.833]
[1754796042033,0.1176,4247.2,4246.6,3.9506]
[1754796042236,1.76565201,4247.8,4246.6,3.9506]
[1754796042547,1.76591977,4247.1,4246.6,3.9506]
[1754796042761,1.76587498,4247.2,4246.6,4.5222843]
[1754796042962,1.7658277,4247.3,4246.6,4.5222843]
[1754796043164,0.1176,4247.4,4246.6,3.9506]
[1754796043373,0.8232,4247.3,4246.3,3.832]
[1754796043577,0.8232,4247.3,4246.1,0.1176]
[1754796043578,1.76616036,4246.5,4246.1,0.1176]
[1754796043766,0.1176,4246.7,4246.1,0.1176]
[1754796043767,1.76628514,4246.2,4246.1,0.1176]
[1754796044104,1.76624355,4246.3,4245.9,0.1176]
[1754796044300,1.76627588,4246.3,4245.9,0.1176]
[1754796044480,0.1176,4246.7,4245.9,0.1176]
[1754796044949,1.76628978,4246.2,4245.9,0.1176]
[1754796045150,1.76636069,4246.1,4245.9,0.1176]
[1754796045349,0.02943531,4246.6,4245.9,0.1176]
[1754796045578,1.76636834,4246.0,4245.9,0.1176]
[1754796045778,1.76633672,4246.1,4245.9,0.1176]
[1754796046382,1.76636834,4246.0,4245.9,0.1176]
[1754796046900,1.76636834,4246.0,4245.6,0.04]
[1754796046901,0.29718064,4246.0,4245.6,0.04]
[1754796047080,1.88409315,4245.7,4245.6,0.04]
[1754796048080,0.1176,4245.7,4245.6,0.04]
[1754796048459,3.0,4246.3,4245.6,0.04]
[1754796048460,0.1176,4245.9,4245.6,0.04]
[1754796048859,0.1176,4245.9,4245.7,0.2188184]
[1754796049064,0.1176,4245.9,4245.8,0.2188184]
[1754796049481,1.76649315,4245.7,4245.6,0.04]
[1754796049687,2.80790402,4245.7,4245.6,0.04]
[1754796049854,6.17590402,4245.7,4245.6,0.04]
[1754796050059,6.14646247,4245.7,4245.6,0.04]
[1754796051557,6.69646247,4245.7,4245.6,0.04]
[1754796053014,1.76657637,4245.5,4245.4,0.001]
[1754796053296,2.3166596,4245.3,4245.2,1e-08]
[1754796053625,1.76699257,4244.5,4244.4,0.001]
[1754796053791,0.55,4244.4,4243.9,0.001]
[1754796054000,5.31711747,4244.2,4243.9,0.001]
[1754796054165,5.34661176,4244.1,4244.0,1e-08]
[1754796054492,3.13835911,4244.1,4244.0,1e-08]
[1754796054661,3.16781176,4244.1,4244.0,1e-08]
[1754796056694,0.55,4244.0,4243.5,1e-08]
[1754796056867,2.31736732,4243.6,4243.5,1e-08]
[1754796057066,2.34682344,4243.6,4243.5,1e-08]
[1754796057260,6.13856732,4243.6,4243.5,1e-08]
[1754796057477,5.31736732,4243.6,4243.5,1e-08]
[1754796057679,10.67603246,4243.6,4243.5,1e-08]
[1754796058078,6.02583246,4243.6,4243.5,1e-08]
[1754796058290,9.85483246,4243.6,4243.5,1e-08]
[1754796058606,10.67603246,4243.6,4243.5,1e-08]
[1754796059572,10.8016276,4243.6,4243.5,1e-08]
[1754796059792,10.79363246,4243.6,4243.5,1e-08]
[1754796059990,10.8016276,4243.6,4243.5,1e-08]
[1754796061470,5.59343246,4243.6,4243.5,1e-08]
[1754796061698,6.42243246,4243.6,4243.5,1e-08]
[1754796062075,0.1176,4243.6,4243.5,1e-08]
[1754796062301,0.1176,4243.7,4243.5,0.89500001]
[1754796062513,0.1176,4243.9,4243.6,0.895]
[1754796062716,1.76736732,4243.6,4243.5,1e-08]
[1754796062921,1.79682344,4243.6,4243.5,1e-08]
[1754796063218,7.02493835,4243.6,4243.5,1e-08]
[1754796063385,1.76774223,4242.7,4242.6,1e-08]
[1754796063582,9.1762046,4242.7,4242.6,1e-08]
[1754796063787,9.14674223,4242.7,4242.6,1e-08]
[1754796064913,8.59574223,4242.7,4242.6,1e-08]
[1754796065113,9.63208459,4242.7,4242.6,1e-08]
[1754796065906,7.86434236,4242.7,4242.6,1e-08]
[1754796066219,8.59574223,4242.7,4242.6,0.89500001]
[1754796066925,6.828,4242.7,4242.6,0.89500001]
[1754796067220,3.0,4242.7,4242.6,1e-08]
[1754796067420,8.59574223,4242.7,4242.6,1e-08]
[1754796067721,8.59574223,4242.7,4242.6,0.89500001]
[1754796068195,3.828,4242.7,4242.6,0.89500001]
[1754796068595,5.6252046,4242.7,4242.6,0.89500001]
[1754796068806,6.15826269,4242.7,4242.6,1e-08]
[1754796069225,0.58491409,4243.2,4242.6,0.89500001]
[1754796069427,3.0,4243.0,4242.6,0.89500001]
[1754796069596,1.76770057,4242.8,4242.6,0.89500001]
[1754796069797,1.76774223,4242.7,4242.6,1e-08]
[1754796070022,5.59474223,4242.7,4242.6,1e-08]
[1754796070404,1.76774223,4242.7,4242.6,0.89500001]
[1754796070713,0.58491409,4243.2,4242.6,0.89500001]
[1754796070923,1.76770057,4242.8,4242.7,0.895]
[1754796071127,5.59470057,4242.8,4242.7,0.895]
[1754796071829,1.76774223,4242.7,4242.6,1e-08]
[1754796072606,5.59474223,4242.7,4242.6,0.89500001]
[1754796073736,5.59474223,4242.7,4242.6,1e-08]
[1754796073943,6.33098315,4242.7,4242.6,1e-08]
[1754796074241,6.44858315,4242.7,4242.6,1e-08]
[1754796074544,5.71234223,4242.7,4242.6,1e-08]
[1754796075037,1.88534223,4242.7,4242.6,1e-08]
[1754796075212,3.9436,4242.7,4242.6,0.89500001]
[1754796076162,3.58491409,4243.2,4242.6,0.89500001]
[1754796076163,0.58491409,4243.2,4242.6,0.89500001]
[1754796076312,0.1176,4243.0,4242.7,0.895]
[1754796076835,0.1176,4243.0,4242.6,1e-08]
[1754796077005,3.826,4243.3,4242.8,0.895]
[1754796077210,3.85445889,4243.2,4242.6,1e-08]
[1754796077417,3.825,4243.1,4242.6,1e-08]
[1754796077616,1.76774223,4242.7,4242.6,1e-08]
[1754796077827,3.46181395,4243.6,4242.6,1e-08]
[1754796078046,1.76749228,4243.3,4242.6,1e-08]
[1754796078340,1.76774223,4242.7,4242.6,1e-08]
[1754796078546,5.59274223,4242.7,4242.6,1e-08]
[1754796079044,5.59274223,4242.7,4242.6,0.46820001]
[1754796079214,1.76757559,4243.1,4242.6,0.94960001]
[1754796079426,3.825,4243.0,4242.7,0.4682]
[1754796080121,1.76770057,4242.8,4242.6,1e-08]
[1754796080316,5.59274223,4242.7,4242.6,1e-08]
[1754796081029,1.76774223,4242.7,4242.6,0.94960001]
[1754796081335,0.50069936,4243.1,4242.6,0.94960001]
[1754796081543,5.59157477,4243.2,4242.7,0.9496]
[1754796081737,0.50069936,4243.1,4242.8,0.9496]
[1754796081942,4.32469936,4243.2,4242.9,0.9496]
[1754796082146,4.32469936,4243.2,4242.6,1e-08]
[1754796082356,1.76768116,4242.9,4242.6,1e-08]
[1754796082512,3.824,4242.8,4242.6,1e-08]
[1754796082850,0.50069936,4242.8,4242.7,0.9496]
[1754796083139,3.824,4242.8,4242.7,0.9496]
[1754796083305,0.50069936,4242.8,4242.7,0.9496]
[1754796083509,0.50069936,4243.2,4242.7,0.9496]
[1754796083735,0.50069936,4243.1,4242.8,2.71730057]
[1754796083951,0.50069936,4243.2,4242.9,0.9496]
[1754796084108,3.823,4243.3,4243.0,0.9496]
[1754796084313,4.32369936,4243.3,4242.7,0.4682]
[1754796084514,3.823,4243.3,4242.7,2.23593527]
[1754796084732,0.50069936,4243.5,4242.8,0.9496]
[1754796085012,3.823,4243.4,4242.9,0.9496]
[1754796085213,3.823,4243.3,4243.0,0.9496]
[1754796085435,3.823,4243.3,4242.6,1e-08]
[1754796085644,5.59051199,4243.3,4243.1,0.9496]
[1754796085848,1.76755993,4243.2,4242.6,1e-08]
[1754796086167,3.823,4243.3,4242.6,1e-08]
[1754796086327,1.76767176,4242.9,4242.7,0.4682]
[1754796086507,1.76748765,4243.4,4242.7,0.4682]
[1754796086716,3.822,4243.5,4242.8,0.4814]
[1754796086961,3.822,4243.5,4242.6,1e-08]
[1754796086962,1.76765834,4243.0,4242.6,1e-08]
[1754796087255,3.9396,4243.1,4242.6,0.46820001]
[1754796087410,5.70717858,4243.1,4242.7,0.4682]
[1754796087615,0.1176,4243.1,4242.8,0.9496]
[1754796087832,0.1176,4243.1,4242.9,0.9496]
[1754796088313,0.1176,4243.1,4242.6,1e-08]
[1754796088314,0.1176,4243.1,4243.0,0.9496]
[1754796088761,0.50229525,4244.0,4243.7,1.76732568]
[1754796088955,0.50229525,4244.0,4243.1,0.55]
[1754796088956,0.002,4244.5,4244.2,1.76710963]
[1754796089119,0.002,4244.5,4244.2,1.76707765]
[1754796089318,1.76671,4245.2,4244.3,1.16962299]
[1754796089530,1.76671,4245.2,4244.4,0.22002299]
[1754796089743,1.76671,4245.2,4243.8,0.17673257]
[1754796089744,3.821,4245.3,4244.5,1.16962299]
[1754796090043,3.821,4245.3,4243.8,0.17673257]
[1754796090044,1.76687553,4244.8,4244.6,0.22002299]
[1754796090213,0.35756285,4244.8,4244.7,0.22002299]
[1754796090542,4.17856285,4244.8,4244.7,0.22002299]
[1754796090754,5.58776484,4245.1,4244.7,0.68822299]
[1754796090949,3.821,4245.1,4244.8,0.22002299]
[1754796091153,3.821,4245.1,4244.8,1.16962299]
[1754796091312,3.821,4245.1,4244.8,0.22002299]
[1754796092061,1.80882607,4244.9,4244.8,0.22002299]
[1754796092262,2.54848322,4244.9,4244.8,0.22002299]
[1754796092850,3.862,4244.9,4244.8,0.68822299]
[1754796093045,5.62882607,4244.9,4244.8,0.22002299]
[1754796093546,3.862,4244.9,4244.8,0.22002299]
[1754796093714,5.62882607,4244.9,4244.8,0.22002299]
[1754796093918,3.862,4244.9,4244.8,0.22002299]
[1754796094168,5.62882607,4244.9,4244.8,0.22002299]
[1754796094337,0.60488261,4244.9,4244.8,0.22002299]
[1754796094520,5.62882607,4244.9,4244.8,0.22002299]
[1754796095966,6.45202607,4244.9,4244.8,0.22002299]
[1754796096118,9.45202607,4244.9,4244.8,0.22002299]
[1754796096445,10.00202607,4244.9,4244.8,0.22002299]
[1754796097454,9.45102607,4244.9,4244.8,0.22002299]
[1754796097628,10.57280431,4244.9,4244.8,0.22002299]
[1754796098033,10.57180431,4244.9,4244.8,0.22002299]
[1754796098255,6.75380431,4244.9,4244.8,0.22002299]
[1754796098645,6.04820431,4244.9,4244.8,0.22002299]
[1754796098868,0.55,4244.7,4243.2,0.1176]
[1754796099069,0.55,4244.7,4243.1,0.4682]
[1754796099070,1.76746522,4243.4,4243.1,0.4682]
[1754796099283,0.0294582,4243.3,4243.1,0.4682]
[1754796099486,0.46744504,4246.0,4243.9,1.76721896]
[1754796099782,0.002,4248.4,4243.9,1.76721896]
[1754796099783,0.002,4248.4,4246.5,0.55]
[1754796100008,0.002,4248.4,4246.7,0.55]
[1754796100183,1e-08,4248.1,4247.8,1.76561985]
[1754796100347,1e-08,4248.1,4247.8,3.13623764]
[1754796100546,1e-08,4248.1,4247.8,3.84580867]
[1754796100752,1e-08,4248.1,4247.8,1.76561985]
[1754796102790,1e-08,4248.1,4247.0,3.0]
[1754796103198,1e-08,4248.1,4247.2,3.0]
[1754796103349,1e-08,4248.1,4247.4,4.76575281]
[1754796103555,1e-08,4248.1,4247.6,1.76566208]
[1754796103753,1e-08,4248.1,4247.4,6.918]
[1754796103986,1e-08,4248.1,4247.5,1.76574455]
[1754796104180,1e-08,4248.1,4247.7,1.76562477]
[1754796104480,1e-08,4248.1,4247.4,6.918]
[1754796104891,0.002,4248.4,4248.3,1.76541204]
[1754796105395,0.002,4248.4,4248.3,8.68541204]
[1754796106999,0.002,4248.4,4248.3,8.68041204]
[1754796107301,0.002,4248.4,4248.3,4.76541204]
[1754796107482,0.002,4248.4,4248.3,8.68041204]
[1754796107804,0.002,4248.4,4248.3,0.67809531]
[1754796107962,0.002,4248.4,4248.3,1.76541204]
[1754796108871,0.002,4248.4,4248.3,5.67641204]
[1754796109197,0.002,4248.4,4247.6,1.76566822]
[1754796109198,0.002,4248.4,4247.7,3.0]
[1754796109497,0.002,4248.4,4248.3,1.76541204]
[1754796109700,0.002,4248.4,4248.3,2.31541204]
[1754796109990,1e-08,4249.1,4249.0,2.3151212]
[1754796110159,1e-08,4249.1,4249.0,17.64004402]
[1754796110892,1e-08,4249.1,4249.0,17.85651156]
[1754796113090,1e-08,4249.1,4249.0,18.4957628]
[1754796113487,1e-08,4249.1,4249.0,14.5827628]
[1754796113691,1e-08,4249.1,4249.0,19.04204044]
[1754796113890,1e-08,4249.1,4249.0,15.13704044]
[1754796114194,1e-08,4249.1,4249.0,19.68029168]
[1754796114594,1e-08,4249.1,4249.0,6.84271762]
[1754796114801,1e-08,4249.1,4249.0,10.74436183]
[1754796115158,0.4986,4250.6,4249.6,2.31487198]
[1754796115392,0.4986,4250.6,4249.6,2.68907206]
[1754796115580,0.4986,4250.6,4249.6,6.70467206]
[1754796115868,0.4986,4250.6,4249.6,7.25467206]
[1754796116083,0.4986,4250.6,4249.6,3.35667206]
[1754796116283,0.4986,4250.6,4249.6,7.25367206]
[1754796117293,0.4986,4250.6,4249.6,3.35667206]
[1754796117591,0.4986,4250.6,4249.6,7.24767206]
[1754796118374,0.4986,4250.6,4249.6,3.35667206]
[1754796118571,0.4986,4250.6,4249.6,7.24767206]
[1754796119063,0.4986,4250.6,4249.6,3.35667206]
[1754796119261,0.4986,4250.6,4249.6,7.26820368]
[1754796119466,0.04,4250.9,4249.7,0.55]
[1754796119794,1.76326118,4253.5,4251.0,2.31425925]
[1754796119795,0.1176,4252.1,4251.0,2.31425925]
[1754796119962,0.4541,4252.2,4251.7,1.76399607]
[1754796120167,0.4541,4252.2,4251.8,4.21871175]
[1754796120376,0.4541,4252.2,4251.8,4.22171175]
[1754796120697,0.9927,4251.9,4251.2,3.888]
[1754796120861,0.4541,4251.8,4251.3,5.65613684]
[1754796121062,2.26260028,4251.7,4251.0,1.76428188]
[1754796121275,0.4541,4251.6,4251.4,1.76411834]
[1754796121570,0.04,4251.9,4251.5,3.892]
[1754796122087,0.002,4252.5,4252.1,1.7638244]
[1754796122286,0.002,4252.5,4252.4,1.7637099]
[1754796122594,0.002,4252.5,4252.2,3.891]
[1754796122898,0.4561,4252.5,4252.2,5.65478511]
[1754796123199,0.002,4252.5,4252.4,1.7637099]
[1754796123495,0.002,4252.5,4252.4,5.6517099]
[1754796123706,0.002,4252.5,4252.4,6.2017099]
[1754796123866,0.002,4252.5,4252.4,9.2017099]
[1754796124266,0.002,4252.5,4252.4,9.8247925]
[1754796124486,0.002,4252.5,4252.4,10.72777251]
[1754796124763,0.04,4252.9,4252.8,1.76354401]
[1754796124966,0.04,4252.9,4252.8,4.439]
[1754796125201,0.04,4252.9,4252.8,6.20254401]
[1754796125585,0.04,4252.9,4252.8,4.439]
[1754796125766,0.04,4252.9,4252.4,0.90298001]
[1754796125967,0.04,4252.9,4252.7,0.55]
[1754796126283,0.04,4252.9,4252.8,6.887]
[1754796126471,2.25760255,4252.9,4252.8,3.886]
[1754796126672,2.25760255,4252.9,4252.8,3.885]
[1754796126673,2.75620255,4252.9,4252.8,3.885]
[1754796126879,0.9927,4252.9,4252.8,3.885]
[1754796127182,1.76358548,4252.7,4252.6,3.885]
[1754796127381,2.71628548,4252.7,4252.6,3.885]
[1754796127793,2.71628548,4252.7,4252.1,3.882]
[1754796127794,1.7637058,4252.5,4252.1,3.882]
[1754796127990,1.76379009,4252.3,4252.1,3.882]
[1754796128304,0.9527,4252.2,4252.1,3.882]
[1754796128491,0.9527,4252.2,4252.1,6.882]
[1754796129092,1.76389785,4252.0,4251.2,1.76420114]
[1754796129293,0.4541,4251.9,4251.3,4.05842011]
[1754796129694,0.4541,4251.9,4251.4,3.879]
[1754796129695,0.4986,4251.8,4251.4,3.879]
[1754796129901,2.71671372,4251.7,4251.3,0.17642011]
[1754796130071,0.9527,4251.6,4251.5,3.0]
[1754796130677,1.76379641,4252.2,4251.5,3.1176]
[1754796130873,2.716455,4252.3,4251.5,4.88168137]
[1754796131104,1.76380175,4252.2,4251.8,0.1176]
[1754796131302,0.9527,4252.2,4251.8,0.1176]
[1754796131499,0.9527,4252.1,4251.8,0.1176]
[1754796131699,0.9527,4252.0,4251.8,0.1176]
[1754796131875,1.76386939,4252.1,4251.8,0.1176]
[1754796132073,0.9527,4251.9,4251.8,0.1176]
[1754796132712,0.9527,4251.9,4251.8,0.33568267]
[1754796133332,0.4541,4251.9,4251.8,0.33568267]
[1754796133903,0.9527,4251.9,4251.8,0.33568267]
[1754796134226,0.4541,4251.9,4251.8,0.33568267]
[1754796134404,0.4541,4251.9,4251.8,0.21808267]
[1754796134606,1.80353244,4252.9,4251.8,0.21808267]
[1754796134607,0.4541,4252.6,4251.8,0.65031039]
[1754796134920,0.04,4252.9,4251.8,0.65031039]
[1754796134921,0.04,4252.9,4252.4,1.76370873]
[1754796135082,0.04,4252.9,4252.5,5.84673734]
[1754796135279,0.4941,4252.9,4252.7,1.76358548]
[1754796135487,0.4941,4252.9,4252.8,0.21808267]
[1754796135691,0.4941,4252.9,4252.8,1.98162668]
[1754796136097,0.4941,4252.9,4252.8,0.21808267]
[1754796136285,0.04,4252.9,4252.8,0.21808267]
[1754796136488,0.04,4252.9,4252.8,1.98162668]
[1754796136777,0.04,4252.9,4252.6,1.76359199]
[1754796136980,0.04,4252.9,4252.5,3.865]
[1754796136981,0.04,4252.9,4252.7,0.95765988]
[1754796137316,0.04,4252.9,4252.8,0.21843368]
[1754796138287,0.04,4252.9,4252.8,1.98197769]
[1754796138517,0.04,4252.9,4252.8,0.21843368]
[1754796138698,0.04,4252.9,4252.8,1.98197769]
[1754796139003,0.04,4252.9,4252.8,2.73566043]
[1754796139214,0.04,4252.9,4252.8,0.97211642]
[1754796139582,0.04,4252.9,4252.8,0.21843368]
[1754796139779,0.45381703,4252.9,4252.8,0.21843368]
[1754796139986,0.94181703,4252.9,4252.8,0.21843368]
[1754796142092,0.45381703,4252.9,4252.8,0.21843368]
[1754796142615,0.9509,4253.3,4252.8,0.21843368]
[1754796142813,1.76336515,4253.3,4252.9,0.21843368]
[1754796143017,0.9509,4253.2,4253.0,0.21843368]
[1754796143197,1.76330257,4253.4,4253.1,0.21843368]
[1754796143519,1.76330257,4253.4,4253.2,0.21843368]
[1754796143686,1.76329524,4253.4,4253.3,0.21896411]
[1754796143885,2.25129524,4253.4,4253.3,0.21896411]
[1754796144417,2.25129524,4253.4,4252.8,3.847]
[1754796144418,1.76334536,4253.3,4252.8,3.847]
[1754796144593,0.4629,4253.3,4252.9,0.21901353]
[1754796144804,0.9509,4253.2,4253.0,0.21901353]
[1754796145022,0.488,4253.2,4253.1,0.21901353]
[1754796145319,1.88093179,4253.4,4253.1,0.21901353]
[1754796145480,1.7633367,4253.3,4253.2,0.21901353]
[1754796145687,2.7142367,4253.3,4253.2,0.21901353]
[1754796147399,0.9509,4253.3,4253.2,0.21901353]
[1754796147919,2.7142367,4253.3,4253.2,0.21901353]
[1754796148287,0.9509,4253.3,4253.2,0.21901353]
[1754796148726,0.9509,4253.3,4253.2,0.21950159]
[1754796148930,2.7142367,4253.3,4253.2,0.21950159]
[1754796149295,0.9509,4253.3,4253.2,0.21950159]
[1754796149505,2.7142367,4253.3,4253.2,0.21950159]
[1754796149714,0.9509,4253.3,4253.2,0.21950159]
[1754796149914,2.7142367,4253.3,4253.2,0.21950159]
[1754796151287,0.9509,4253.3,4253.2,0.21950159]
[1754796151510,0.9509,4253.3,4253.2,0.21978296]
[1754796152216,0.002,4253.8,4253.2,0.21978296]
[1754796152513,0.002,4253.8,4253.7,0.1176]
[1754796152692,0.002,4253.8,4253.7,0.33738296]
[1754796154330,0.002,4253.8,4253.7,2.10055384]
[1754796154489,0.002,4253.8,4253.7,0.33738296]